{"text_format":"1","workbook":"xlsx","n_sheets":1,"sheets":["Statistical Report 7-16"],"not_rendered":{"charts":0,"images":2,"macros":0,"external_links":0,"defined_names":2,"comments":0,"pivot_tables":0},"unopened":[],"bounds":{"document_bytes":16777216,"sheet_cells":100000,"rows_first":2000,"rows_last":500,"rows_between":2000,"halvings":0,"cell_chars":16384,"cell_head_chars":4096},"cells_cut":0,"cells_raw":0,"read":"whole","date_system":"1900"}

{"sheet":"Statistical Report 7-16","index":0,"n_rows":146,"n_cols":6,"rows_kept":146,"cut":false,"hidden":false,"merged":[[3,0,3,5],[0,0,0,5],[2,0,2,5]]}
["YVEDDI - Monthly Leadership Statistical Report"]
[]
["Report Month:  July 2016 "]
[]
["Program","Services Provided","Annual\nFiscal Year Goal","Report Month's Totals","Year to Date","FY 17 YTD"]
["Community Services","Clients Enrolled - Davie",null,null,null,24]
[null,"Clients Enrolled - Stokes",null,null,null,42]
[null,"Clients Enrolled - Surry",null,null,null,42]
[null,"Clients Enrolled - Yadkin",null,null,null,19]
[null,"TOTALS",{"$f":"SUM(C6:C9)","v":0},0,0,{"$f":"SUM(F6:F9)","v":127}]
[]
["Divorce Filing Fee","Clients Enrolled - Stokes",null,null,null,36]
[null,"Clients Enrolled - Surry",null,null,null,11]
[null,"Clients Enrolled - Yadkin",null,null,null,42]
[null,"TOTALS",{"$f":"SUM(C12:C14)","v":0},0,0,{"$f":"SUM(F12:F14)","v":89}]
[]
["Domestic Violence","Clients Served - Stokes",null,null,null,653]
[null,"Clients Served - Surry",null,null,null,897]
[null,"Clients Served - Yadkin",null,null,null,567]
[null,"TOTALS",{"$f":"SUM(C17:C19)","v":0},{"$f":"SUM(D17:D19)","v":0},{"$f":"SUM(E17:E19)","v":0},{"$f":"SUM(F17:F19)","v":2117}]
[]
["Sexual Assault","Clients Served - Stokes",null,null,null,3]
[null,"Clients Served - Surry",null,null,null,8]
[null,"Clients Served - Yadkin",null,null,null,33]
[null,"TOTALS",{"$f":"SUM(C22:C24)","v":0},{"$f":"SUM(D22:D24)","v":0},{"$f":"SUM(E22:E24)","v":0},{"$f":"SUM(F22:F24)","v":44}]
[]
["Elderly Services","Homebound Meals - Surry",null,null,null,21128]
[null,"Homebound Meals - Yadkin",null,null,null,18890]
[null,"TOTALS",{"$f":"SUM(C27:C28)","v":0},0,0,{"$f":"SUM(F27:F28)","v":40018}]
[null,"Congregate Meals - Surry",null,null,null,11656]
[null,"Congregate Meals - Yadkin",null,null,null,12315]
[null,"TOTALS",{"$f":"SUM(C30:C31)","v":0},0,0,{"$f":"SUM(F30:F31)","v":23971}]
[null,"Medical Transportation - Davie",null,null,null,714]
[null,"Medical Transportation - Surry",null,null,null,893]
[null,"Medical Transportation - Yadkin",null,null,null,195]
[null,"TOTALS",{"$f":"SUM(C33:C35)","v":0},0,0,{"$f":"SUM(F33:F35)","v":1802}]
[null,"General Transportation - Davie",null,null,null,6286]
[null,"General Transportation - Surry",null,null,null,3119]
[null,"General Transportation - Yadkin",null,null,null,676]
[null,"TOTALS",{"$f":"SUM(C37:C39)","v":0},0,0,{"$f":"SUM(F37:F39)","v":10081}]
[null,"Legal - Stokes",null,null,null,47]
[null,"Legal - Surry",null,null,null,106]
[null,"Legal - Yadkin",null,null,null,27]
[null,"TOTALS",{"$f":"SUM(C41:C43)","v":0},0,0,{"$f":"SUM(F41:F43)","v":180}]
[]
["Family Resource Center ","Clients Utilizing the FRC "]
[]
["Head Start","Children Served - Davie",null,null,null,63]
[null,"Children Served - Stokes",null,null,null,84]
[null,"Children Served - Surry",null,null,null,218]
[null,"Children Served - Yadkin",null,null,null,109]
[null,"TOTALS",{"$f":"SUM(C48:C51)","v":0},0,0,{"$f":"SUM(F48:F51)","v":474}]
[]
["Migrant Head Start","Children Served - Surry",null,null,null,14]
["FY:  Feb 1 - Jan 31","Children Served - Yadkin",null,null,null,17]
[null,"TOTALS",{"$f":"SUM(C54:C55)","v":0},0,0,{"$f":"SUM(F54:F55)","v":31}]
[]
["Retired and Senior","Hours Served - Surry",null,null,null,3103]
["Volunteer Program","Hours Served - Yadkin",null,null,null,1438]
[null,"TOTALS",{"$f":"SUM(C58:C59)","v":0},0,0,{"$f":"SUM(F58:F59)","v":4541}]
[null,"Number of Volunteers - Surry",null,null,null,46]
["FY:  Apr 1 - Mar 31","Number of Volunteers - Yadkin",null,null,null,40]
[null,"TOTALS",{"$f":"SUM(C61:C62)","v":0},0,0,{"$f":"SUM(F61:F62)","v":86}]
[null,"Number of Stations - Surry",null,null,null,10]
[null,"Number of Stations - Yadkin",null,null,null,6]
[null,"TOTALS",{"$f":"SUM(C64:C65)","v":0},0,0,{"$f":"SUM(F64:F65)","v":16}]
[]
["Pilot Mountain\nSenior Center","Attendance",null,null,null,4080]
[]
["Surry County\nSenior Center","Attendance",null,null,null,9404]
[]
["East Bend Senior Center","Attendance",null,null,null,14484]
[]
["Yadkin County Senior Center","Attendance",null,null,null,14887]
[]
["Yadkin Valley \nSenior Center","Attendance",null,null,null,8625]
[]
["Transportation","Number of Clients - Davie",null,null,null,317]
[null,"Number of Clients - Stokes",null,null,null,424]
[null,"Number of Clients - Surry",null,null,null,1076]
[null,"Number of Clients - Yadkin",null,null,null,727]
[null,"TOTALS",{"$f":"SUM(C78:C81)","v":0},0,0,{"$f":"SUM(F78:F81)","v":2544}]
[null,"Number Trips - Davie",null,null,null,47570]
[null,"Number Trips - Stokes",null,null,null,25274]
[null,"Number Trips - Surry",null,null,null,76018]
[null,"Number Trips - Yadkin",null,null,null,37188]
[null,"TOTALS",{"$f":"SUM(C83:C86)","v":0},0,0,{"$f":"SUM(F83:F86)","v":186050}]
[null,"ROAP Number Trips - Davie"]
[null,"ROAP Number Trips - Stokes"]
[null,"ROAP Number Trips - Surry"]
[null,"ROAP Number Trips - Yadkin"]
[null,"TOTALS",{"$f":"SUM(C88:C91)","v":0},0,0,{"$f":"SUM(F88:F91)","v":0}]
[]
["Weatherization","Number  of Homes - Davie",null,null,null,9]
[null,"Number of Homes - Stokes",null,null,null,12]
[null,"Number of Homes - Surry",null,null,null,24]
[null,"Number of Homes - Yadkin",null,null,null,10]
[null,"TOTALS",{"$f":"SUM(C94:C97)","v":0},0,0,{"$f":"SUM(F94:F97)","v":55}]
[null,"People Assisted - Davie",null,null,null,17]
[null,"People Assisted - Stokes",null,null,null,29]
[null,"People Assisted - Surry",null,null,null,60]
[null,"People Assisted - Yadkin",null,null,null,17]
[null,"TOTALS",{"$f":"SUM(C99:C102)","v":0},0,0,{"$f":"SUM(F99:F102)","v":123}]
["Heating Air Repair and Replacement Program","Heating Systems - Davie",null,null,null,6]
[null,"Heating Systems - Stokes",null,null,null,5]
[null,"Heating Systems - Surry",null,null,null,11]
[null,"Heating Systems - Yadkin",null,null,null,8]
[null,"TOTALS",{"$f":"SUM(C104:C107)","v":0},0,0,{"$f":"SUM(F104:F107)","v":30}]
[null,"People Assisted - Davie",null,null,null,16]
[null,"People Assisted - Stokes",null,null,null,18]
[null,"People Assisted - Surry",null,null,null,34]
[null,"People Assisted - Yadkin",null,null,null,10]
[null,"TOTALS",{"$f":"SUM(C109:C112)","v":0},0,0,{"$f":"SUM(F109:F112)","v":78}]
[]
["Duke Energy HHF","Number  of Homes - Davie",null,null,null,9]
["Appliance Replacement","Number of Homes - Stokes",null,null,null,10]
[null,"Number of Homes - Surry",null,null,null,10]
[null,"Number of Homes - Yadkin",null,null,null,11]
[null,"TOTALS",{"$f":"SUM(C115:C118)","v":0},0,0,{"$f":"SUM(F115:F118)","v":40}]
[null,"People Assisted - Davie",null,null,null,18]
[null,"People Assisted - Stokes",null,null,null,18]
[null,"People Assisted - Surry",null,null,null,18]
[null,"People Assisted - Yadkin",null,null,null,19]
[null,"TOTALS",{"$f":"SUM(C120:C123)","v":0},0,0,{"$f":"SUM(F120:F123)","v":73}]
[]
["Duke Energy HHF","Number  of Homes - Davie",null,null,null,9]
["Health & Safety","Number of Homes - Stokes",null,null,null,17]
[null,"Number of Homes - Surry",null,null,null,23]
[null,"Number of Homes - Yadkin",null,null,null,11]
[null,"TOTALS",{"$f":"SUM(C126:C129)","v":0},0,0,{"$f":"SUM(F126:F129)","v":60}]
[null,"People Assisted - Davie",null,null,null,18]
[null,"People Assisted - Stokes",null,null,null,35]
[null,"People Assisted - Surry",null,null,null,45]
[null,"People Assisted - Yadkin",null,null,null,18]
[null,"TOTALS",{"$f":"SUM(C131:C134)","v":0},0,0,{"$f":"SUM(F131:F134)","v":116}]
[]
["Duke Energy HHF","Number  of Homes - Davie",null,null,null,14]
["HVAC","Number of Homes - Stokes",null,null,null,18]
[null,"Number of Homes - Surry",null,null,null,28]
[null,"Number of Homes - Yadkin",null,null,null,25]
[null,"TOTALS",{"$f":"SUM(C137:C140)","v":0},0,0,{"$f":"SUM(F137:F140)","v":85}]
[null,"People Assisted - Davie",null,null,null,29]
[null,"People Assisted - Stokes",null,null,null,42]
[null,"People Assisted - Surry",null,null,null,50]
[null,"People Assisted - Yadkin",null,null,null,54]
[null,"TOTALS",{"$f":"SUM(C142:C145)","v":0},0,0,{"$f":"SUM(F142:F145)","v":175}]